bitfinex/quotes_BTCUSD_20230403
["timestamp","ask_amount","ask_price","bid_price","bid_amount"]
[1680561446441,0.005584,27895.0,27894.0,0.42046339]
[1680561446964,0.003584,27896.0,27894.0,0.42046339]
[1680561447216,0.003584,27895.0,27894.0,0.42046339]
[1680561447438,0.003584,27895.0,27894.0,0.42064339]
[1680561447669,0.004584,27895.0,27894.0,0.42046339]
[1680561447904,0.001,27895.0,27893.0,0.01118]
[1680561448131,0.001,27895.0,27894.0,0.57788374]
[1680561448368,0.001,27895.0,27894.0,0.1423]
[1680561448597,0.003584,27899.0,27894.0,0.1373]
[1680561448825,0.001,27895.0,27894.0,0.14189681]
[1680561449125,0.001,27895.0,27894.0,0.171961]
[1680561449389,0.001,27895.0,27894.0,0.38698871]
[1680561449947,0.001,27895.0,27894.0,0.48698871]
[1680561450213,0.003584,27900.0,27898.0,0.2]
[1680561450493,0.003584,27900.0,27898.0,0.47919681]
[1680561450780,0.003584,27900.0,27898.0,0.38018771]
[1680561451051,0.003584,27900.0,27898.0,0.38036771]
[1680561451309,0.021084,27900.0,27898.0,0.38236771]
[1680561451850,0.021084,27900.0,27899.0,0.35461329]
[1680561452114,0.021084,27900.0,27899.0,0.35479329]
[1680561452345,0.021084,27900.0,27899.0,0.397681]
[1680561453020,0.012084,27900.0,27899.0,0.397681]
[1680561453242,0.021084,27900.0,27899.0,0.399681]
[1680561453939,0.012084,27900.0,27899.0,0.397681]
[1680561454164,0.020084,27900.0,27899.0,0.35579329]
[1680561454413,0.012084,27900.0,27899.0,0.35479329]
[1680561454646,0.014084,27900.0,27899.0,0.35479329]
[1680561454869,0.012084,27900.0,27899.0,0.35479329]
[1680561455765,0.012084,27900.0,27899.0,0.35579329]
[1680561456017,0.012084,27900.0,27899.0,0.35479329]
[1680561456934,0.012084,27900.0,27899.0,0.35579329]
[1680561456935,0.020084,27900.0,27899.0,0.35579329]
[1680561457410,0.012084,27900.0,27899.0,0.35479329]
[1680561457633,0.020084,27900.0,27899.0,0.398681]
[1680561457857,0.012084,27900.0,27899.0,0.397681]
[1680561458549,0.01166746,27900.0,27899.0,0.397621]
[1680561458781,0.01960746,27900.0,27899.0,0.398501]
[1680561459006,0.01160746,27900.0,27899.0,0.397501]
[1680561459197,0.01960746,27900.0,27899.0,0.398501]
[1680561460514,0.01960746,27900.0,27899.0,0.35561329]
[1680561460935,0.0165,27900.0,27899.0,0.35561329]
[1680561461150,0.008,27900.0,27899.0,0.35561329]
[1680561461366,0.008,27900.0,27899.0,0.001]
[1680561461580,0.008,27900.0,27899.0,0.44119876]
[1680561462658,0.008,27900.0,27899.0,0.54119876]
[1680561463318,0.008,27900.0,27899.0,0.54137876]
[1680561463779,0.008,27900.0,27899.0,0.58408647]
[1680561464008,0.008,27900.0,27899.0,0.40084771]
[1680561464237,0.008,27900.0,27899.0,0.43623971]
[1680561465363,0.003583,27905.0,27901.0,0.2]
[1680561465588,0.003583,27905.0,27902.0,0.14189681]
[1680561465814,0.003763,27906.0,27902.0,0.14189681]
[1680561466075,0.00018,27907.0,27905.0,0.0855]
[1680561466283,0.02288,27908.0,27906.0,0.2]
[1680561466501,0.026463,27908.0,27906.0,0.2]
[1680561466723,0.026643,27908.0,27906.0,0.2]
[1680561467163,0.02306,27908.0,27906.0,0.58423067]
[1680561467413,0.02288,27908.0,27906.0,0.58423067]
[1680561467631,0.02288,27908.0,27907.0,0.42055059]
[1680561467858,0.02288,27908.0,27907.0,0.50625059]
[1680561468088,0.02388,27908.0,27907.0,0.50625059]
[1680561468304,0.02288,27908.0,27907.0,0.50625059]
[1680561468758,0.02288,27908.0,27907.0,0.51625059]
[1680561469427,0.02288,27908.0,27907.0,0.61643059]
[1680561469653,0.02288,27908.0,27907.0,0.61625059]
[1680561470090,0.02288,27908.0,27907.0,0.6591383]
[1680561470306,0.02288,27908.0,27907.0,0.5491383]
[1680561470528,0.02288,27908.0,27907.0,0.5521383]
[1680561470743,0.02288,27908.0,27907.0,0.5491383]
[1680561470977,0.02288,27908.0,27907.0,0.7310383]
[1680561471264,0.02288,27908.0,27907.0,0.5591383]
[1680561471517,0.02288,27908.0,27907.0,0.7310383]
[1680561471788,0.02288,27908.0,27907.0,0.7210383]
[1680561472008,0.00788,27908.0,27907.0,0.7240983]
[1680561472228,0.00788,27908.0,27907.0,0.6353383]
[1680561472443,0.00788,27908.0,27907.0,0.59245059]
[1680561472690,0.00788,27908.0,27905.0,0.00018]
[1680561472691,0.14609868,27908.0,27905.0,0.00018]
[1680561472918,1.35824735,27907.0,27900.0,0.42856531]
[1680561473139,0.0814,27904.0,27898.0,0.00018]
[1680561473366,0.06332368,27903.0,27898.0,0.38733972]
[1680561473614,0.024678,27902.0,27898.0,0.38733972]
[1680561473844,0.00018,27902.0,27901.0,0.37115996]
[1680561474506,0.004763,27902.0,27901.0,0.37115996]
[1680561474737,0.003763,27902.0,27897.0,0.2]
[1680561474970,0.01984368,27901.0,27897.0,0.2]
[1680561475204,0.01984368,27901.0,27898.0,0.38158456]
[1680561475205,0.003584,27900.0,27898.0,0.38158456]
[1680561475417,0.003764,27900.0,27898.0,0.38158456]
[1680561476313,0.003764,27900.0,27898.0,0.46735998]
[1680561476753,0.003764,27900.0,27898.0,0.47035998]
[1680561476973,0.003764,27900.0,27898.0,0.46735998]
[1680561477204,0.003764,27900.0,27898.0,0.08877542]
[1680561477205,0.04718682,27900.0,27898.0,0.08877542]
[1680561477445,0.02331,27899.0,27898.0,0.08577542]
[1680561477665,0.035574,27899.0,27898.0,0.29787885]
[1680561477949,0.012264,27899.0,27898.0,0.29887885]
[1680561478163,0.06133279,27899.0,27898.0,0.29887885]
[1680561478389,0.012264,27899.0,27898.0,0.21210343]
[1680561478656,0.03743,27899.0,27898.0,0.21210343]
[1680561479102,0.012264,27899.0,27898.0,0.21210343]
[1680561479316,0.012084,27899.0,27898.0,0.21310343]
[1680561479564,0.012084,27899.0,27898.0,0.21210343]
[1680561479778,0.013084,27899.0,27898.0,0.21310343]
[1680561480006,0.52036672,27899.0,27898.0,0.001]
[1680561480535,0.48226383,27899.0,27898.0,0.001]
[1680561480990,0.039622,27899.0,27898.0,0.001]
[1680561481213,0.00018,27900.0,27898.0,0.2671162]
[1680561481431,0.003764,27900.0,27898.0,0.2671162]
[1680561481652,0.003764,27900.0,27898.0,0.35289162]
[1680561481893,0.001,27899.0,27898.0,0.35489162]
[1680561482754,0.00018,27900.0,27898.0,0.08577542]
[1680561482969,0.001,27900.0,27898.0,0.53896782]
[1680561483206,0.012264,27902.0,27898.0,0.53696782]
[1680561483485,0.001,27899.0,27898.0,0.53696782]
[1680561483756,0.00018,27901.0,27898.0,0.53696782]
[1680561483984,0.001,27900.0,27898.0,0.53696782]
[1680561484422,0.001,27900.0,27898.0,0.4511924]
[1680561484638,0.012264,27902.0,27898.0,0.4511924]
[1680561485517,0.013264,27902.0,27898.0,0.4511924]
[1680561485788,0.012264,27902.0,27897.0,0.2]
[1680561486010,0.003584,27902.0,27898.0,0.42248415]
[1680561486228,0.003764,27902.0,27898.0,0.42248415]
[1680561487763,0.003764,27902.0,27898.0,0.50825957]
[1680561487988,0.003764,27902.0,27899.0,0.1784266]
[1680561488206,0.028631,27902.0,27899.0,0.1784266]
[1680561488425,0.39146645,27902.0,27899.0,0.26420202]
[1680561488635,0.024012,27901.0,27899.0,0.26420202]
[1680561488860,0.07017385,27901.0,27899.0,0.26420202]
[1680561489089,0.0239,27900.0,27899.0,0.26720202]
[1680561489317,0.0239,27900.0,27899.0,0.08577542]
[1680561489318,0.019432,27900.0,27899.0,0.08577542]
[1680561489561,0.1439,27900.0,27899.0,0.08577542]
[1680561489780,0.04408,27900.0,27899.0,0.08577542]
[1680561490279,0.04508,27900.0,27899.0,0.08577542]
[1680561490541,0.04508,27900.0,27897.0,0.2]
[1680561490812,0.105092,27899.0,27894.0,0.00018]
[1680561491081,0.0817,27895.0,27893.0,0.41056467]
[1680561491358,0.0817,27895.0,27894.0,0.31597879]
[1680561491623,0.003584,27897.0,27896.0,0.59875592]
[1680561491883,0.037072,27897.0,27896.0,0.59875592]
[1680561492894,0.038072,27897.0,27896.0,0.60075592]
[1680561493172,0.034488,27897.0,27896.0,0.60075592]
[1680561493438,0.038072,27897.0,27896.0,0.202]
[1680561493622,0.40597952,27897.0,27896.0,0.002]
[1680561493839,0.038072,27897.0,27896.0,0.002]
[1680561494080,0.49475938,27897.0,27896.0,0.002]
[1680561494334,0.49493938,27897.0,27896.0,0.002]
[1680561494796,0.029752,27897.0,27896.0,0.08776542]
[1680561495024,0.45304678,27897.0,27896.0,0.08776542]
[1680561495247,0.45322678,27897.0,27896.0,0.08776542]
[1680561495467,0.45316678,27897.0,27896.0,0.0877562]
[1680561495687,0.45322678,27897.0,27896.0,0.0876962]
[1680561496115,0.46172678,27897.0,27896.0,0.0876962]
[1680561496577,0.46172678,27897.0,27896.0,0.00193078]
[1680561496802,0.46154678,27897.0,27896.0,0.00193078]
[1680561500091,0.46154678,27897.0,27896.0,0.0876962]
[1680561500290,0.46172678,27897.0,27896.0,0.0876962]
[1680561501814,0.46133286,27897.0,27896.0,0.0876962]
[1680561502239,0.03785808,27897.0,27896.0,0.0876962]
[1680561502457,0.03785808,27897.0,27896.0,0.26309289]
[1680561502880,0.03785808,27897.0,27896.0,0.26327289]
[1680561503846,0.03785808,27897.0,27896.0,0.00211078]
[1680561504051,0.03785808,27897.0,27896.0,0.00193078]
[1680561504348,0.38086251,27897.0,27896.0,0.00193078]
[1680561506208,0.38086251,27897.0,27896.0,0.0876962]
[1680561508367,0.38086251,27897.0,27896.0,0.00193078]
[1680561509012,0.03427408,27897.0,27896.0,0.13018793]
[1680561510535,0.0095,27897.0,27896.0,0.13018793]
[1680561511422,0.013084,27897.0,27896.0,0.13018793]
[1680561511632,0.013084,27897.0,27896.0,0.21595335]
[1680561512973,0.0095,27897.0,27896.0,0.0876962]
[1680561513191,0.001,27897.0,27896.0,0.46024244]
[1680561514464,0.001,27897.0,27896.0,0.37447702]
[1680561514687,0.0085,27898.0,27896.0,0.37254624]
[1680561514927,0.003584,27899.0,27896.0,0.37254624]
[1680561515328,0.028443,27899.0,27896.0,0.37254624]
[1680561515539,0.0085,27898.0,27896.0,0.37254624]
[1680561515768,0.001,27897.0,27896.0,0.37254624]
[1680561516439,0.012084,27898.0,27896.0,0.37254624]
[1680561516649,0.003584,27898.0,27896.0,0.37254624]
[1680561516861,0.0095,27899.0,27896.0,0.37254624]
[1680561517077,0.025092,27898.0,27896.0,0.37254624]
[1680561517495,0.001,27897.0,27896.0,0.45831166]
[1680561518574,0.003584,27898.0,27896.0,0.45831166]
[1680561518799,0.004584,27898.0,27896.0,0.45831166]
[1680561519035,0.012084,27899.0,27896.0,0.45831166]
[1680561519236,0.001,27897.0,27896.0,0.08576542]
[1680561519463,0.0085,27898.0,27897.0,0.40679726]
[1680561519686,0.004584,27898.0,27897.0,0.40679726]
[1680561519894,0.012084,27898.0,27897.0,0.49256268]
[1680561520328,0.003584,27898.0,27897.0,0.49256268]
[1680561520540,0.003584,27898.0,27897.0,0.40679726]
[1680561521399,0.004584,27898.0,27897.0,0.40779726]
[1680561521610,0.003584,27898.0,27897.0,0.40679726]
[1680561521820,0.013084,27898.0,27897.0,0.40779726]
[1680561522257,0.004584,27898.0,27897.0,0.40779726]
[1680561525780,0.44274524,27900.0,27898.0,0.23105935]
[1680561525998,0.003584,27899.0,27898.0,0.23123935]
[1680561526218,0.012084,27899.0,27898.0,0.23123935]
[1680561526650,0.035907,27899.0,27898.0,0.23123935]
[1680561526867,0.035907,27899.0,27898.0,0.31700477]
[1680561527081,0.012084,27899.0,27898.0,0.31700477]
[1680561527296,0.012084,27899.0,27898.0,0.31900477]
[1680561527509,0.012084,27899.0,27898.0,0.31700477]
[1680561527730,0.003584,27899.0,27898.0,0.31882477]
[1680561527944,0.027667,27899.0,27898.0,0.31882477]
[1680561528368,0.027667,27899.0,27898.0,0.31900477]
[1680561529030,0.00018,27902.0,27898.0,0.4344989]
[1680561529232,0.003584,27900.0,27898.0,0.4344989]
[1680561529453,0.003584,27900.0,27898.0,0.34873348]
[1680561529662,0.38753248,27903.0,27899.0,0.26487445]
[1680561529881,0.003584,27901.0,27899.0,0.26487445]
[1680561531040,0.003584,27901.0,27899.0,0.004]
[1680561531265,0.05064036,27901.0,27899.0,0.004]
[1680561531477,1.37886124,27900.0,27899.0,0.004]
[1680561531700,0.41374924,27899.0,27894.0,0.23233505]
[1680561531942,0.035134,27898.0,27894.0,0.23233505]
[1680561532173,0.0085,27897.0,27894.0,0.23233505]
[1680561532384,0.003584,27896.0,27894.0,0.23233505]
[1680561534785,1.85206089,27896.0,27895.0,0.12665313]
[1680561535018,1.91819576,27896.0,27895.0,0.12665313]
[1680561535247,2.2875728,27896.0,27895.0,0.002]
[1680561535716,2.41654063,27896.0,27895.0,0.002]
[1680561536383,1.96118504,27896.0,27890.0,1.07145489]
[1680561536591,0.064,27893.0,27890.0,0.85074778]
[1680561536874,0.064,27893.0,27890.0,0.8191893]
[1680561536875,0.39246783,27891.0,27890.0,0.8191893]
[1680561537115,2.03161126,27891.0,27890.0,0.81008325]
[1680561537351,2.71883289,27891.0,27890.0,0.81008325]
[1680561537578,2.96455811,27891.0,27890.0,0.81008325]
[1680561537800,2.79260101,27891.0,27890.0,0.81008325]
[1680561538023,2.81960101,27891.0,27890.0,0.81008325]
[1680561538257,2.79260101,27891.0,27890.0,0.81008325]
[1680561538481,2.62052101,27891.0,27890.0,0.81008325]
[1680561539171,2.64752101,27891.0,27890.0,0.81008325]
[1680561539423,2.46021599,27891.0,27890.0,0.81008325]
[1680561539661,2.48721599,27891.0,27890.0,0.81008325]
[1680561539885,2.46021599,27891.0,27890.0,0.81008325]
[1680561540299,2.46021599,27891.0,27890.0,0.91008325]
[1680561540509,2.48721599,27891.0,27890.0,0.91008325]
[1680561540728,2.95191137,27891.0,27890.0,0.91008325]
[1680561540945,2.48721599,27891.0,27890.0,0.91008325]
[1680561541162,2.82216396,27891.0,27890.0,0.91008325]
[1680561541371,2.33158317,27891.0,27890.0,0.91008325]
[1680561542006,2.71309107,27891.0,27890.0,0.91008325]
[1680561542220,2.33158317,27891.0,27890.0,0.91008325]
[1680561542430,2.7355617,27891.0,27890.0,0.91008325]
[1680561542647,2.35858317,27891.0,27890.0,0.91008325]
[1680561542858,2.50366317,27891.0,27890.0,0.91008325]
[1680561543075,2.53066317,27891.0,27890.0,0.91008325]
[1680561543339,2.35858317,27891.0,27890.0,0.91008325]
[1680561543785,2.48721599,27891.0,27890.0,0.91008325]
[1680561544006,2.54654078,27891.0,27890.0,0.91008325]
[1680561544227,2.54654078,27891.0,27890.0,0.89206008]
[1680561544228,2.74511121,27891.0,27890.0,0.89206008]
[1680561544467,2.54642265,27891.0,27890.0,0.87379208]
[1680561544671,2.67342265,27891.0,27890.0,0.87379208]
[1680561544925,2.75905889,27891.0,27890.0,0.87379208]
[1680561545147,2.67342265,27891.0,27890.0,0.87379208]
[1680561545559,2.63059144,27891.0,27890.0,0.87379208]
[1680561545801,2.60359144,27891.0,27890.0,0.87379208]
[1680561546240,2.63059144,27891.0,27890.0,0.87379208]
[1680561546456,2.60359144,27891.0,27890.0,0.87379208]
[1680561546671,2.63030197,27891.0,27890.0,0.87397208]
[1680561546899,2.54467849,27891.0,27890.0,0.87397208]
[1680561547354,2.79872457,27891.0,27890.0,0.87397208]
[1680561548016,1.68251028,27891.0,27890.0,0.87397208]
[1680561548236,0.61882853,27891.0,27890.0,0.87397208]
[1680561549351,0.62732853,27891.0,27890.0,0.87397208]
[1680561549565,0.63624491,27891.0,27890.0,0.87397208]
[1680561549825,1.02487514,27891.0,27890.0,0.87397208]
[1680561550037,1.18547942,27891.0,27890.0,0.87397208]
[1680561550438,1.18529942,27891.0,27890.0,0.87397208]
[1680561550871,0.79684919,27891.0,27890.0,0.87397208]
[1680561551131,2.54109434,27891.0,27890.0,0.87397208]
[1680561551348,2.43984856,27891.0,27890.0,0.87397208]
[1680561553348,2.43984856,27891.0,27890.0,0.81496828]
[1680561553349,2.43930284,27891.0,27890.0,0.81496828]
[1680561554033,2.41230284,27891.0,27890.0,0.81496828]
[1680561554252,2.43930284,27891.0,27890.0,0.81496828]
[1680561554941,3.31730284,27891.0,27890.0,0.64988373]
[1680561555156,3.31730284,27891.0,27890.0,0.4490331]
[1680561555372,3.40631231,27891.0,27890.0,0.4490331]
[1680561555610,3.43331231,27891.0,27890.0,0.4490331]
[1680561556280,3.40631231,27891.0,27890.0,0.4490331]
[1680561556498,3.43331231,27891.0,27890.0,0.4490331]
[1680561556719,3.40631231,27891.0,27890.0,0.43948625]
[1680561556927,3.43332231,27891.0,27890.0,0.43948625]
[1680561557141,3.40632231,27891.0,27890.0,0.4287828]
[1680561557366,2.74904231,27891.0,27890.0,0.4287828]
[1680561557588,3.1963065,27891.0,27890.0,0.4287828]
[1680561557832,2.23570222,27891.0,27890.0,0.4287828]
[1680561558048,0.77251857,27891.0,27890.0,0.4289628]
[1680561558737,2.09035636,27891.0,27890.0,0.4289628]
[1680561558993,2.06353636,27891.0,27890.0,0.4089628]
[1680561559211,2.06353636,27891.0,27890.0,0.39161961]
[1680561559212,2.36079581,27891.0,27890.0,0.39161961]
[1680561559429,2.36079581,27891.0,27888.0,1.94834994]
[1680561559430,1.400464,27889.0,27888.0,1.94834994]
[1680561559643,3.25908179,27889.0,27888.0,1.94816994]
[1680561559854,4.16375,27889.0,27888.0,1.94816994]
[1680561560274,4.020325,27889.0,27888.0,1.94816994]
[1680561561116,4.020325,27889.0,27888.0,1.93920048]
[1680561561328,4.147325,27889.0,27888.0,1.9193255]
[1680561561543,4.147325,27889.0,27888.0,1.8550255]
[1680561562487,4.120325,27889.0,27888.0,1.8550255]
[1680561562764,4.047325,27889.0,27888.0,1.8550255]
[1680561562988,4.147325,27889.0,27888.0,1.83502023]
[1680561563216,4.147325,27889.0,27888.0,1.82593482]
[1680561563663,4.047325,27889.0,27888.0,1.82593482]
[1680561563882,4.047325,27889.0,27888.0,1.77147988]
[1680561564098,4.147325,27889.0,27888.0,1.76577988]
[1680561564748,4.05867656,27889.0,27888.0,1.76577988]
[1680561564980,5.96833252,27889.0,27888.0,1.76577988]
[1680561565212,5.99533252,27889.0,27888.0,1.76577988]
[1680561566304,5.98398096,27889.0,27888.0,1.76577988]
[1680561567225,5.95698096,27889.0,27888.0,1.76577988]
[1680561567441,5.98398096,27889.0,27888.0,1.76577988]
[1680561567662,5.98398096,27889.0,27888.0,1.7563745]
[1680561568090,5.60598096,27889.0,27888.0,1.7563745]
[1680561568316,5.67546593,27889.0,27888.0,1.7563745]
[1680561568766,5.84760593,27889.0,27888.0,1.7563745]
[1680561568985,5.67546593,27889.0,27888.0,1.7563745]
[1680561569182,5.78295998,27889.0,27888.0,1.7563745]
[1680561569440,3.84630402,27889.0,27888.0,1.7563745]
[1680561569883,2.74612402,27889.0,27888.0,1.7565545]
[1680561570098,2.71912402,27889.0,27888.0,1.7565545]
[1680561570350,2.75462402,27889.0,27888.0,1.7565545]
[1680561572033,2.75468402,27889.0,27888.0,1.7564945]
[1680561572241,2.75462402,27889.0,27888.0,1.7565545]
[1680561572663,2.9118411,27889.0,27888.0,1.7565545]
[1680561573095,2.68291202,27889.0,27888.0,1.7565545]
[1680561573522,2.38291202,27889.0,27888.0,1.7565545]
[1680561573943,2.35591202,27889.0,27888.0,1.7565545]
[1680561574458,2.38291202,27889.0,27888.0,1.7565545]
[1680561574681,2.02838381,27889.0,27888.0,1.7565545]
[1680561574920,2.30138381,27889.0,27888.0,1.7565545]
[1680561575125,2.32838381,27889.0,27888.0,1.7565545]
[1680561575321,2.28868381,27889.0,27888.0,1.7565545]
[1680561579242,2.28826708,27889.0,27888.0,1.7565545]
[1680561579447,2.53736961,27889.0,27888.0,1.7565545]
[1680561579658,2.7267783,27889.0,27888.0,1.7565545]
[1680561579881,2.6997783,27889.0,27888.0,1.7565545]
[1680561580084,2.7267783,27889.0,27888.0,1.7565545]
[1680561581067,2.61928425,27889.0,27888.0,1.7565545]
[1680561582259,2.59228425,27889.0,27888.0,1.7565545]
[1680561582591,2.84233131,27889.0,27888.0,1.7565545]
[1680561582814,2.86933131,27889.0,27888.0,1.7565545]
[1680561583237,2.89633131,27889.0,27888.0,1.7565545]
[1680561583705,2.68138493,27889.0,27888.0,1.7565545]
[1680561583901,2.68156493,27889.0,27888.0,1.7564945]
[1680561584556,2.68138493,27889.0,27888.0,1.7565545]
[1680561586193,2.40927883,27889.0,27888.0,1.7565545]
[1680561586398,2.83703769,27889.0,27888.0,1.7565545]
[1680561587024,2.58141883,27889.0,27888.0,1.7565545]
[1680561587490,2.83703769,27889.0,27888.0,1.7565545]
[1680561588541,2.83703769,27889.0,27888.0,1.73643461]
[1680561588542,2.58159883,27889.0,27888.0,1.73643461]
[1680561588777,2.82735355,27889.0,27888.0,1.72763461]
[1680561588987,4.81000951,27889.0,27888.0,1.72763461]
[1680561589206,4.83700951,27889.0,27888.0,1.72763461]
[1680561589421,4.81000951,27889.0,27888.0,1.72763461]
[1680561589684,4.73700951,27889.0,27888.0,1.72763461]
[1680561589898,2.80035355,27889.0,27888.0,1.72763461]
[1680561590105,2.90035355,27889.0,27888.0,1.72763461]
[1680561590314,4.73700951,27889.0,27888.0,1.72763461]
[1680561590527,2.80035355,27889.0,27888.0,1.72763461]
[1680561590728,2.77335355,27889.0,27888.0,1.72763461]
[1680561590942,2.80035355,27889.0,27888.0,1.72763461]
[1680561592206,3.18872377,27889.0,27888.0,1.72763461]
[1680561592442,3.20061829,27889.0,27888.0,1.72763461]
[1680561592645,3.20061829,27889.0,27888.0,1.71865161]
[1680561592851,2.89050176,27889.0,27888.0,1.71865161]
[1680561593482,2.71836176,27889.0,27888.0,1.71865161]
[1680561593692,2.69136176,27889.0,27888.0,1.71865161]
[1680561593909,2.46071252,27889.0,27888.0,1.71865161]
[1680561594380,2.15221252,27889.0,27888.0,1.71865161]
[1680561594692,2.4201277,27889.0,27888.0,1.71865161]
[1680561595435,2.4199477,27889.0,27888.0,1.71877161]
[1680561595662,2.3929477,27889.0,27888.0,1.71877161]
[1680561595867,2.6929477,27889.0,27888.0,1.71883161]
[1680561596288,2.7014477,27889.0,27888.0,1.71883161]
[1680561596804,2.57112883,27889.0,27888.0,1.71883161]
[1680561597025,1.93430148,27889.0,27888.0,2.0883765]
[1680561597305,1.54003136,27889.0,27888.0,2.0883765]
[1680561597733,1.51303136,27889.0,27888.0,2.0883765]
[1680561597950,1.51303136,27889.0,27888.0,2.0893765]
[1680561597951,1.54003136,27889.0,27888.0,2.0893765]
[1680561598170,1.7283523,27889.0,27888.0,2.0883765]
[1680561598388,1.7553523,27889.0,27888.0,2.0893765]
[1680561599043,2.0553523,27889.0,27888.0,2.0893765]
[1680561599297,2.0553523,27889.0,27888.0,1.71983161]
[1680561599548,2.45242542,27889.0,27888.0,1.71983161]
[1680561599819,2.5812704,27889.0,27888.0,1.71983161]
[1680561600073,2.40946682,27889.0,27888.0,1.71983161]
[1680561600356,2.42542542,27889.0,27888.0,1.71883161]
[1680561600620,2.09831258,27889.0,27888.0,1.71983161]
[1680561602975,2.22715148,27889.0,27888.0,1.71983161]
[1680561603847,2.09831258,27889.0,27888.0,1.71983161]
[1680561604506,2.22715161,27889.0,27888.0,1.71983161]
[1680561604734,2.26079698,27889.0,27888.0,1.71983161]
[1680561605236,2.09831258,27889.0,27888.0,1.71983161]
[1680561607231,2.27759258,27889.0,27888.0,1.71983161]
[1680561607666,2.76843535,27889.0,27888.0,1.71983161]
[1680561607881,2.6395975,27889.0,27888.0,1.71983161]
[1680561608767,2.76843646,27889.0,27888.0,1.71983161]
[1680561608981,2.40643154,27889.0,27888.0,1.71983161]
[1680561609196,2.37943154,27889.0,27888.0,1.71883161]
[1680561609826,2.40643154,27889.0,27888.0,1.71883161]
[1680561610040,2.37943154,27889.0,27888.0,1.71883161]
[1680561610890,1.9489746,27889.0,27888.0,1.95514464]
[1680561611111,1.77717102,27889.0,27888.0,1.95514464]
[1680561611375,1.80417102,27889.0,27888.0,1.95514464]
[1680561611813,1.71581502,27889.0,27888.0,2.04054464]
[1680561612026,1.65053779,27889.0,27888.0,2.2403568]
[1680561612244,1.60292279,27889.0,27888.0,2.2403568]
[1680561612461,1.31783779,27889.0,27888.0,2.27178296]
[1680561612718,0.13775534,27891.0,27888.0,1.89003161]
[1680561612719,0.08947723,27891.0,27888.0,1.89003161]
[1680561612942,0.08589223,27893.0,27892.0,0.19982]
[1680561613172,1.29052274,27893.0,27892.0,0.37052]
[1680561613389,1.29052274,27893.0,27892.0,0.38313345]
[1680561613606,0.00018,27894.0,27892.0,0.38313345]
[1680561613824,0.003584,27895.0,27893.0,0.1716]
[1680561614056,0.00018,27896.0,27894.0,0.0852]
[1680561614299,1.29405466,27896.0,27895.0,0.0856]
[1680561614523,1.31859566,27896.0,27895.0,0.0856]
[1680561614750,1.31859566,27896.0,27894.0,0.0858]
[1680561614969,0.024638,27895.0,27894.0,0.0858]
[1680561615180,0.010753,27895.0,27894.0,0.0858]
[1680561616046,0.019253,27895.0,27894.0,0.0858]
[1680561616516,0.019253,27895.0,27894.0,0.37387396]
[1680561616731,0.019253,27895.0,27894.0,0.37487396]
[1680561616732,0.030253,27895.0,27894.0,0.37487396]
[1680561627423,0.10243118,27895.0,27894.0,0.37487396]
[1680561628936,0.10243118,27895.0,27894.0,0.28907396]
[1680561629590,0.030253,27895.0,27894.0,0.28907396]
[1680561631001,0.05342,27895.0,27894.0,0.28907396]
[1680561631271,0.030253,27895.0,27894.0,0.28907396]
[1680561632615,0.055278,27895.0,27894.0,0.28907396]
[1680561633157,0.030253,27895.0,27894.0,0.28907396]
[1680561634036,0.023084,27895.0,27894.0,0.28907396]
[1680561635151,0.014584,27895.0,27894.0,0.28907396]
[1680561635549,0.011,27895.0,27894.0,0.28907396]
[1680561635756,0.014584,27895.0,27894.0,0.28907396]
[1680561635951,0.011,27895.0,27894.0,0.28898223]
[1680561637331,0.014584,27895.0,27894.0,0.28898223]
[1680561637789,0.011,27895.0,27894.0,0.28898223]
[1680561638005,0.011,27895.0,27894.0,0.0868]
[1680561638217,0.011,27895.0,27894.0,0.49939937]
[1680561639743,0.011,27895.0,27894.0,0.49957937]
[1680561640226,0.011,27895.0,27894.0,0.49939937]
[1680561640649,1.30141624,27895.0,27894.0,0.49939937]
[1680561640867,1.30141624,27895.0,27894.0,0.08698]
[1680561641087,1.30141624,27895.0,27894.0,0.54704088]
[1680561641295,1.30141624,27895.0,27894.0,0.43949783]
[1680561641729,1.30141624,27895.0,27894.0,0.08698]
[1680561641941,1.30141624,27895.0,27894.0,0.51524558]
[1680561642155,1.30141624,27895.0,27894.0,0.51542558]
[1680561644365,0.011,27895.0,27894.0,0.51542558]
[1680561644483,0.011,27895.0,27894.0,0.55329558]
[1680561644913,0.011,27895.0,27894.0,0.12485]
[1680561645115,0.011,27895.0,27894.0,0.228575]
[1680561645386,0.011,27895.0,27894.0,0.21065]
[1680561645588,0.011,27895.0,27894.0,0.31065]
[1680561646569,0.011,27895.0,27894.0,0.31083]
[1680561646806,0.003584,27900.0,27899.0,0.19982]
[1680561647040,1.29384622,27900.0,27899.0,0.19982]
[1680561647271,1.29402622,27900.0,27899.0,0.19982]
[1680561647988,1.30144222,27900.0,27899.0,0.20082]
[1680561648223,1.30144222,27900.0,27899.0,0.61168825]
[1680561648922,1.30502622,27900.0,27899.0,0.61168825]
[1680561649160,1.30502622,27900.0,27899.0,0.20082]
[1680561649402,1.76660957,27900.0,27899.0,0.20082]
[1680561655335,1.4000419,27900.0,27898.0,6e-05]
[1680561655582,1.93639592,27899.0,27897.0,0.00012]
[1680561655797,1.63255022,27898.0,27889.0,0.38271903]
[1680561656006,0.0276,27893.0,27889.0,0.2]
[1680561656221,0.0276,27893.0,27890.0,0.36198549]
[1680561656222,0.05685568,27892.0,27890.0,0.36198549]
[1680561656435,0.023972,27891.0,27890.0,0.36216549]
[1680561656645,0.036057,27891.0,27890.0,0.36216549]
[1680561656854,0.012085,27891.0,27890.0,0.36216549]
[1680561658363,0.035085,27891.0,27890.0,0.36216549]
[1680561658576,0.012085,27891.0,27890.0,0.36216549]
[1680561658792,0.035085,27891.0,27890.0,0.36216549]
[1680561659007,0.012085,27891.0,27890.0,0.36216549]
[1680561660103,0.035085,27891.0,27890.0,0.36216549]
[1680561660373,0.012085,27891.0,27890.0,0.36216549]
[1680561660597,0.023,27891.0,27890.0,0.00018]
[1680561660822,0.023,27891.0,27890.0,0.032992]
[1680561661050,0.003585,27894.0,27893.0,0.19982]
[1680561661500,0.003585,27894.0,27893.0,0.2]
[1680561662302,0.012085,27894.0,27893.0,0.2]
[1680561662555,0.007169,27896.0,27893.0,0.2]
[1680561662816,0.38846188,27896.0,27893.0,0.2]
[1680561663097,0.003584,27895.0,27893.0,0.2]
[1680561663578,0.01,27894.0,27893.0,0.2]
[1680561663834,0.003584,27895.0,27893.0,0.2]